fUST/lending_fUST_20250625
["ID","MTS","AMOUNT","RATE_DAILY","PERIOD"]
[367489216,1750821036830,-460.0,0.00016949,2]
[367489217,1750821036841,-460.0,0.00016949,2]
[367489218,1750821036855,-460.0,0.00016949,2]
[367489219,1750821036867,-460.0,0.00016949,2]
[367489220,1750821036878,-460.0,0.00016949,2]
[367489221,1750821036889,-460.0,0.00016949,2]
[367489222,1750821036903,-315.52066083,0.00016949,2]
[367489223,1750821036914,-460.0,0.0001695,2]
[367489224,1750821036924,-460.0,0.0001695,2]
[367489225,1750821036937,-448.92475168,0.0001695,2]
[367489226,1750821036948,-191.06891877,0.0001695,2]
[367489227,1750821036959,-460.0,0.0001695,2]
[367489228,1750821036969,-460.0,0.0001695,2]
[367489229,1750821036980,-460.0,0.0001695,2]
[367489230,1750821036990,-460.0,0.0001695,2]
[367489231,1750821037002,-460.0,0.0001695,2]
[367489232,1750821037012,-460.0,0.0001695,2]
[367489233,1750821037023,-460.0,0.0001695,2]
[367489234,1750821037034,-544.9453055,0.0001695,2]
[367489235,1750821037045,-460.0,0.0001695,2]
[367489236,1750821037055,-460.0,0.0001695,2]
[367489237,1750821037066,-460.0,0.0001695,2]
[367489238,1750821037076,-460.0,0.0001695,2]
[367489239,1750821037087,-460.0,0.0001695,2]
[367489240,1750821037099,-460.0,0.0001695,2]
[367489241,1750821037109,-433.13687211,0.0001695,2]
[367489242,1750821037120,-460.0,0.0001695,2]
[367489243,1750821037130,-500.0,0.0001695,2]
[367489244,1750821037140,-214.81979918,0.0001695,2]
[367489245,1750821037151,-500.0,0.0001695,2]
[367489246,1750821037161,-186.50266949,0.0001695,2]
[367489247,1750821037172,-329.03,0.0001695,2]
[367489248,1750821037184,-500.0,0.0001695,2]
[367489249,1750821037196,-477.15327667,0.0001695,2]
[367489250,1750821037207,-460.0,0.00016951,2]
[367489251,1750821037218,-460.0,0.00016951,2]
[367489252,1750821037229,-460.0,0.00016951,2]
[367489253,1750821037241,-430.0,0.00016951,2]
[367489254,1750821037253,-401.05001155,0.00016951,2]
[367489255,1750821037264,-460.0,0.00016951,2]
[367489256,1750821037275,-465.01227818,0.00016951,2]
[367489257,1750821037285,-430.0,0.00016951,2]
[367489258,1750821037295,-460.0,0.00016951,2]
[367489259,1750821037306,-460.0,0.00016951,2]
[367489260,1750821037316,-460.0,0.00016951,2]
[367489261,1750821037327,-460.0,0.00016951,2]
[367489262,1750821037337,-430.0,0.00016951,2]
[367489263,1750821037347,-460.0,0.00016951,2]
[367489264,1750821037357,-461.37490103,0.00016951,2]
[367489265,1750821037368,-460.0,0.00016951,2]
[367489266,1750821037379,-460.0,0.00016951,2]
[367489267,1750821037390,-460.0,0.00016951,2]
[367489268,1750821037401,-581.69967653,0.00016951,2]
[367489269,1750821037412,-460.0,0.00016951,2]
[367489270,1750821037422,-460.0,0.00016951,2]
[367489271,1750821037433,-387.17019062,0.00016951,2]
[367489272,1750821037445,-460.0,0.00016951,2]
[367489273,1750821037456,-500.0,0.00016951,2]
[367489274,1750821037467,-505.79789628,0.00016951,2]
[367489275,1750821037478,-460.0,0.00016951,2]
[367489276,1750821037489,-452.75214662,0.00016951,2]
[367489277,1750821037499,-443.9801748,0.00016951,2]
[367489278,1750821037511,-460.0,0.00016951,2]
[367489279,1750821037521,-460.0,0.00016951,2]
[367489280,1750821037532,-460.0,0.00016951,2]
[367489281,1750821037542,-460.0,0.00016951,2]
[367489282,1750821037553,-460.0,0.00016951,2]
[367489283,1750821037563,-460.0,0.00016951,2]
[367489284,1750821037573,-460.0,0.00016951,2]
[367489285,1750821037584,-435.0920666,0.00016951,2]
[367489287,1750821037594,-460.0,0.00016951,2]
[367489288,1750821037605,-305.37752194,0.00016951,2]
[367489289,1750821037616,-460.0,0.00016951,2]
[367489290,1750821037627,-460.0,0.00016951,2]
[367489291,1750821037638,-460.0,0.00016951,2]
[367489292,1750821037649,-460.0,0.00016951,2]
[367489293,1750821037660,-460.0,0.00016951,2]
[367489294,1750821037671,-460.0,0.00016951,2]
[367489295,1750821037682,-460.0,0.00016951,2]
[367489296,1750821037692,-460.0,0.00016951,2]
[367489298,1750821037702,-286.01335777,0.00016951,2]
[367489300,1750821037713,-460.0,0.00016951,2]
[367489301,1750821037724,-460.0,0.00016951,2]
[367489302,1750821037735,-460.0,0.00016951,2]
[367489304,1750821037746,-460.0,0.00016951,2]
[367489306,1750821037756,-460.0,0.00016951,2]
[367489308,1750821037766,-460.0,0.00016951,2]
[367489310,1750821037777,-460.0,0.00016951,2]
[367489311,1750821037788,-460.0,0.00016951,2]
[367489312,1750821037798,-460.0,0.00016951,2]
[367489313,1750821037807,-460.0,0.00016951,2]
[367489314,1750821037818,-460.0,0.00016951,2]
[367489315,1750821037827,-284.03896761,0.00016951,2]
[367489316,1750821037836,-460.0,0.00016951,2]
[367489317,1750821037847,-460.0,0.00016951,2]
[367489319,1750821037856,-460.0,0.00016951,2]
[367489321,1750821037865,-399.28086384,0.00016951,2]
[367489323,1750821037874,-489.58915374,0.00016951,2]
[367489325,1750821037883,-460.0,0.00016951,2]
[367489327,1750821037894,-460.0,0.00016951,2]
[367489348,1750821037905,-474.67398772,0.00016951,2]
[367489351,1750821038094,-460.0,0.00016951,2]
[367489353,1750821038105,-460.0,0.00016951,2]
[367489355,1750821038115,-460.0,0.00016952,2]
[367489357,1750821038124,-406.5251246,0.00016952,2]
[367489359,1750821038134,-460.46158946,0.00016952,2]
[367489361,1750821038143,-460.0,0.00016952,2]
[367489363,1750821038153,-460.0,0.00016952,2]
[367489365,1750821038162,-460.0,0.00016952,2]
[367489367,1750821038171,-460.72303047,0.00016952,2]
[367489369,1750821038181,-505.73122139,0.00016952,2]
[367489371,1750821038190,-158.23922,0.00017089,2]
[367489373,1750821038199,-430.0,0.00017219,2]
[367489375,1750821038209,-160.36,0.00017219,2]
[367489377,1750821038218,-460.0,0.00017219,2]
[367489380,1750821038228,-558.77,0.00017219,2]
[367489382,1750821038238,-509.85,0.00017219,2]
[367489384,1750821038247,-886.56,0.00017219,2]
[367489386,1750821038256,-749.67,0.00017219,2]
[367489388,1750821038265,-460.0,0.00017219,2]
[367489390,1750821038274,-460.0,0.00017219,2]
[367489392,1750821038283,-460.0,0.00017219,2]
[367489394,1750821038292,-460.0,0.00017219,2]
[367489396,1750821038301,-460.0,0.00017219,2]
[367489398,1750821038311,-460.0,0.00017219,2]
[367489400,1750821038321,-460.0,0.00017219,2]
[367489402,1750821038330,-460.0,0.00017219,2]
[367489404,1750821038339,-460.0,0.00017219,2]
[367489406,1750821038348,-460.0,0.00017219,2]
[367489408,1750821038357,-460.0,0.00017219,2]
[367489410,1750821038366,-723.24,0.00017219,2]
[367489412,1750821038375,-460.0,0.00017219,2]
[367489414,1750821038385,-460.0,0.00017219,2]
[367489416,1750821038394,-460.0,0.00017219,2]
[367489418,1750821038403,-251.98781083,0.0001722,2]
[367489419,1750821038412,-452.414988,0.0001722,2]
[367489421,1750821038422,-460.0,0.0001722,2]
[367489423,1750821038431,-465.42713338,0.0001722,2]
[367489425,1750821038441,-430.0,0.0001722,2]
[367489427,1750821038451,-535.89569391,0.0001722,2]
[367489429,1750821038460,-460.0,0.0001722,2]
[367489431,1750821038469,-460.0,0.0001722,2]
[367489433,1750821038478,-460.0,0.0001722,2]
[367489435,1750821038488,-460.0,0.0001722,2]
[367489437,1750821038497,-460.0,0.0001722,2]
[367489439,1750821038506,-460.0,0.0001722,2]
[367489441,1750821038516,-460.0,0.0001722,2]
[367489443,1750821038525,-460.0,0.0001722,2]
[367489445,1750821038534,-460.0,0.0001722,2]
[367489447,1750821038544,-460.0,0.0001722,2]
[367489449,1750821038554,-460.0,0.0001722,2]
[367489451,1750821038563,-460.0,0.0001722,2]
[367489453,1750821038572,-460.0,0.0001722,2]
[367489455,1750821038581,-460.0,0.0001722,2]
[367489457,1750821038590,-460.0,0.0001722,2]
[367489459,1750821038600,-460.0,0.0001722,2]
[367489461,1750821038609,-301.9610187,0.0001722,2]
[367489462,1750821038618,-460.0,0.0001722,2]
[367489464,1750821038627,-460.0,0.0001722,2]
[367489465,1750821038637,-460.0,0.0001722,2]
[367489466,1750821038646,-460.0,0.0001722,2]
[367489467,1750821038656,-460.0,0.0001722,2]
[367489468,1750821038665,-463.92780534,0.0001722,2]
[367489469,1750821038674,-460.0,0.0001722,2]
[367489470,1750821038683,-1162.97,0.0001722,2]
[367489471,1750821038692,-460.0,0.0001722,2]
[367489472,1750821038701,-460.0,0.0001722,2]
[367489473,1750821038711,-164.32,0.0001722,2]
[367489474,1750821038721,-460.0,0.0001722,2]
[367489475,1750821038730,-460.0,0.00017221,2]
[367489476,1750821038739,-460.0,0.00017221,2]
[367489477,1750821038749,-460.0,0.00017221,2]
[367489478,1750821038758,-432.23785448,0.00017221,2]
[367489479,1750821038770,-460.0,0.00017221,2]
[367489480,1750821038780,-460.0,0.00017221,2]
[367489481,1750821038789,-462.92343068,0.00017221,2]
[367489482,1750821038799,-460.0,0.00017221,2]
[367489483,1750821038808,-354.25152981,0.00017221,2]
[367489484,1750821038817,-487.16696393,0.00017221,2]
[367489485,1750821038826,-446.29134718,0.00017221,2]
[367489486,1750821038835,-464.54805531,0.00017221,2]
[367489487,1750821038845,-469.19057444,0.00017221,2]
[367489488,1750821038855,-547.54839612,0.00017221,2]
[367489489,1750821038864,-460.0,0.00017221,2]
[367489490,1750821038874,-460.0,0.00017221,2]
[367489491,1750821038883,-465.95861752,0.00017221,2]
[367489492,1750821038893,-460.0,0.00017221,2]
[367489493,1750821038905,-132.10136588,0.00017221,2]
[367489494,1750821039335,-460.0,0.00016945,2]
[367489495,1750821039345,-460.0,0.00016945,2]
[367489496,1750821039354,-460.0,0.00017219,2]
[367489497,1750821039363,-460.0,0.00017219,2]
[367489498,1750821039373,-327.89863412,0.00017221,2]
[367489499,1750821039382,-434.50545168,0.00017221,2]
[367489500,1750821039391,-460.0,0.00017221,2]
[367489501,1750821039400,-468.54289614,0.00017221,2]
[367489502,1750821039409,-562.06,0.00017221,2]
[367489503,1750821039418,-460.0,0.00017221,2]
[367489504,1750821039427,-250.0,0.00017221,2]
[367489505,1750821039437,-460.0,0.00017221,2]
[367489506,1750821039446,-460.0,0.00017221,2]
[367489507,1750821039455,-460.0,0.00017221,2]
[367489508,1750821039464,-407.75655446,0.00017221,2]
[367489509,1750821039473,-460.0,0.00017221,2]
[367489510,1750821039482,-446.83912161,0.00017221,2]
[367489511,1750821039491,-376.27599042,0.00017221,2]
[367489512,1750821039500,-468.88885646,0.00017221,2]
[367489513,1750821039509,-460.0,0.00017221,2]
[367489514,1750821039519,-387.93259174,0.00017221,2]
[367489515,1750821039528,-470.0,0.00017221,2]
[367489516,1750821039537,-460.0,0.00017221,2]
[367489517,1750821039546,-464.98268795,0.00017221,2]
[367489518,1750821039556,-444.80981411,0.00017221,2]
[367489519,1750821039566,-460.0,0.00017221,2]
[367489520,1750821039575,-460.0,0.00017221,2]
[367489521,1750821039584,-460.0,0.00017221,2]
[367489522,1750821039593,-420.0,0.00017221,2]
[367489523,1750821039603,-393.38800963,0.00017221,2]
[367489524,1750821039612,-462.99488322,0.00017221,2]
[367489525,1750821039622,-375.60034111,0.00017221,2]
[367489526,1750821039631,-460.0,0.00017221,2]
[367489527,1750821039641,-460.0,0.00017221,2]
[367489528,1750821039650,-471.38,0.00017221,2]
[367489529,1750821039660,-460.0,0.00017221,2]
[367489530,1750821039669,-586.01556219,0.00017221,2]
[367489531,1750821039680,-538.45543612,0.00017221,2]
[367489532,1750821039690,-348.58149068,0.00017221,2]
[367489533,1750821039700,-460.0,0.00017221,2]
[367489534,1750821039709,-460.0,0.00017221,2]
[367489535,1750821039719,-460.0,0.00017221,2]
[367489536,1750821039729,-460.0,0.00017221,2]
[367489537,1750821039738,-460.0,0.00017221,2]
[367489538,1750821039747,-264.58,0.00017221,2]
[367489539,1750821039757,-460.0,0.00017221,2]
[367489540,1750821039766,-460.0,0.00017221,2]
[367489541,1750821039775,-460.0,0.00017221,2]
[367489542,1750821039784,-460.0,0.00017221,2]
[367489543,1750821039794,-460.0,0.00017221,2]
[367489544,1750821039803,-390.29,0.00017221,2]
[367489545,1750821039813,-460.0,0.00017221,2]
[367489546,1750821039822,-460.0,0.00017221,2]
[367489547,1750821039831,-460.0,0.00017221,2]
[367489548,1750821039841,-460.0,0.00017221,2]
[367489549,1750821039851,-460.0,0.00017221,2]
[367489550,1750821039861,-460.0,0.00017221,2]
[367489551,1750821039871,-460.0,0.00017221,2]
[367489552,1750821039880,-507.85309789,0.00017221,2]
[367489553,1750821039890,-461.82731804,0.00017221,2]
[367489554,1750821039903,-460.0,0.00017221,2]
[367489555,1750821039913,-460.0,0.00017221,2]
[367489556,1750821039922,-460.0,0.00017221,2]
[367489557,1750821039932,-460.0,0.00017221,2]
[367489558,1750821039941,-267.59428658,0.00017221,2]
[367489559,1750821039951,-460.0,0.00017221,2]
[367489560,1750821039961,-464.39150239,0.00017221,2]
[367489561,1750821039970,-484.25322723,0.00017221,2]
[367489562,1750821039980,-460.0,0.00017221,2]
[367489563,1750821039990,-460.0,0.00017221,2]
[367489564,1750821039999,-460.0,0.00017221,2]
[367489565,1750821040008,-466.75434873,0.00017221,2]
[367489566,1750821040017,-460.0,0.00017221,2]
[367489567,1750821040026,-326.78062633,0.00017221,2]
[367489568,1750821040035,-460.0,0.00017221,2]
[367489569,1750821040045,-460.0,0.00017221,2]
[367489570,1750821040054,-915.85,0.00017221,2]
[367489571,1750821040064,-336.68,0.00017221,2]
[367489572,1750821040073,-460.0,0.00017221,2]
[367489573,1750821040083,-460.0,0.00017221,2]
[367489574,1750821040092,-460.0,0.00017221,2]
[367489575,1750821040101,-460.0,0.00017221,2]
[367489577,1750821040111,-463.79,0.00017221,2]
[367489579,1750821040120,-500.0,0.00017221,2]
[367489581,1750821040129,-460.0,0.00017221,2]
[367489583,1750821040138,-460.0,0.00017221,2]
[367489585,1750821040147,-460.0,0.00017221,2]
[367489587,1750821040157,-460.0,0.00017221,2]
[367489589,1750821040165,-460.0,0.00017221,2]
[367489591,1750821040175,-460.0,0.00017221,2]
[367489593,1750821040185,-446.10486992,0.00017221,2]
[367489595,1750821040194,-460.0,0.00017221,2]
[367489597,1750821040203,-460.0,0.00017221,2]
[367489599,1750821040212,-460.0,0.00017221,2]
[367489601,1750821040221,-728.56,0.00017221,2]
[367489603,1750821040231,-460.0,0.00017221,2]
[367489605,1750821040239,-460.0,0.00017221,2]
[367489607,1750821040248,-497.7,0.00017221,2]
[367489609,1750821040257,-460.0,0.00017221,2]
[367489611,1750821040266,-460.0,0.00017221,2]
[367489613,1750821040275,-160.0,0.00017221,2]
[367489615,1750821040284,-460.0,0.00017221,2]
[367489617,1750821040293,-460.0,0.00017221,2]
[367489619,1750821040303,-460.0,0.00017221,2]
[367489621,1750821040312,-460.0,0.00017221,2]
[367489623,1750821040321,-460.0,0.00017221,2]
[367489625,1750821040330,-460.0,0.00017221,2]
[367489626,1750821040339,-460.0,0.00017221,2]
[367489628,1750821040347,-460.0,0.00017221,2]
[367489630,1750821040357,-363.43331265,0.00017221,2]
[367489632,1750821040366,-281.9530028,0.00017221,2]
[367489634,1750821040375,-460.0,0.00017221,2]
[367489636,1750821040384,-460.0,0.00017221,2]
[367489638,1750821040394,-460.0,0.00017221,2]
[367489640,1750821040403,-460.0,0.00017221,2]
[367489643,1750821040412,-460.0,0.00017221,2]
[367489645,1750821040421,-460.0,0.00017221,2]
[367489647,1750821040430,-461.55883868,0.00017221,2]
[367489648,1750821040439,-461.42047245,0.00017222,2]
[367489650,1750821040448,-460.0,0.00017222,2]
[367489652,1750821040457,-309.44910423,0.00017222,2]
[367489654,1750821040466,-460.0,0.00017222,2]
[367489656,1750821040475,-407.86166721,0.00017222,2]
[367489658,1750821040484,-460.0,0.00017222,2]
[367489660,1750821040493,-464.42386648,0.00017222,2]
[367489662,1750821040502,-460.0,0.00017222,2]
[367489664,1750821040511,-465.04329838,0.00017222,2]
[367489666,1750821040520,-460.0,0.00017222,2]
[367489668,1750821040529,-460.0,0.00017222,2]
[367489670,1750821040539,-463.6476598,0.00017222,2]
[367489672,1750821040548,-460.0,0.00017222,2]
[367489673,1750821040557,-460.0,0.00017222,2]
[367489674,1750821040567,-359.25070781,0.00017222,2]
[367489675,1750821040576,-470.91571987,0.00017222,2]
[367489676,1750821040585,-460.0,0.00017222,2]
[367489677,1750821040594,-460.0,0.00017222,2]
[367489678,1750821040603,-460.0,0.00017222,2]
[367489679,1750821040612,-461.87100285,0.00017223,2]
[367489680,1750821040622,-460.0,0.00017223,2]
[367489681,1750821040631,-460.0,0.00017223,2]
[367489682,1750821040640,-460.0,0.00017223,2]
[367489683,1750821040649,-460.0,0.00017223,2]
[367489684,1750821040658,-460.0,0.00017223,2]
[367489685,1750821040667,-461.3544805,0.00017223,2]
[367489686,1750821040676,-460.0,0.00017223,2]
[367489687,1750821040687,-460.0,0.00017223,2]
[367489688,1750821040696,-439.2750211,0.00017223,2]
[367489689,1750821040705,-468.38650104,0.00017223,2]
[367489690,1750821040715,-460.0,0.00017223,2]
[367489691,1750821040724,-460.0,0.00017223,2]
[367489692,1750821040734,-460.0,0.00017223,2]
[367489693,1750821040744,-502.27,0.00017223,2]
[367489694,1750821040754,-460.0,0.00017223,2]
[367489695,1750821040763,-460.0,0.00017223,2]
[367489696,1750821040772,-549.02695331,0.00017223,2]
[367489697,1750821040781,-240.65,0.00017223,2]
[367489698,1750821040790,-472.71755691,0.00017223,2]
[367489699,1750821040799,-460.0,0.00017223,2]
[367489700,1750821040808,-460.0,0.00017223,2]
[367489701,1750821040818,-472.03175633,0.00017223,2]
[367489702,1750821040826,-460.0,0.00017223,2]
[367489703,1750821040835,-339.98,0.00017223,2]
[367489704,1750821040844,-460.0,0.00017223,2]
[367489705,1750821040854,-460.0,0.00017223,2]
[367489706,1750821040992,-290.0,0.00017223,2]
[367489707,1750821041002,-460.0,0.00017224,2]
[367489708,1750821041011,-460.0,0.00017224,2]
[367489709,1750821041021,-460.0,0.00017224,2]
[367489710,1750821041030,-461.58396092,0.00017224,2]
[367489711,1750821041040,-461.53242612,0.00017224,2]
[367489712,1750821041049,-460.0,0.00017224,2]
[367489713,1750821041059,-460.0,0.00017224,2]
[367489714,1750821041068,-460.0,0.00017224,2]
[367489715,1750821041078,-460.0,0.00017224,2]
[367489716,1750821041087,-460.0,0.00017224,2]
[367489717,1750821041097,-157.39256765,0.00017224,2]
[367489718,1750821041106,-460.0,0.00017224,2]
[367489719,1750821041115,-460.0,0.00017224,2]
[367489720,1750821041126,-460.0,0.00017224,2]
[367489721,1750821041135,-464.4263832,0.00017224,2]
[367489722,1750821041145,-460.0,0.00017225,2]
[367489723,1750821041154,-295.1518399,0.00017225,2]
[367489724,1750821041164,-374.74332401,0.00017225,2]
[367489725,1750821041173,-460.0,0.00017225,2]
[367489726,1750821041183,-430.0,0.00017225,2]
[367489727,1750821041193,-413.6095168,0.00017225,2]
[367489728,1750821041202,-340.0,0.00017225,2]
[367489729,1750821041212,-460.0,0.00017225,2]
[367489730,1750821041221,-460.0,0.00017225,2]
[367489731,1750821041231,-240.0,0.00017225,2]
[367489732,1750821041240,-537.89,0.00017225,2]
[367489733,1750821041249,-433.91130044,0.00017225,2]
[367489734,1750821041259,-460.0,0.00017225,2]
[367489735,1750821041268,-484.05639637,0.00017225,2]
[367489736,1750821041277,-460.0,0.00017225,2]
[367489737,1750821041286,-466.49750726,0.00017225,2]
[367489738,1750821041296,-462.7147795,0.00017225,2]
[367489739,1750821041306,-460.0,0.00017225,2]
[367489740,1750821041315,-460.0,0.00017225,2]
[367489741,1750821041325,-479.62573891,0.00017225,2]
[367489742,1750821041335,-460.0,0.00017225,2]
[367489743,1750821041344,-461.86153494,0.00017225,2]
[367489744,1750821041353,-460.0,0.00017225,2]
[367489745,1750821041363,-216.46424742,0.00017225,2]
[367489746,1750821041372,-460.0,0.00017225,2]
[367489747,1750821041382,-460.0,0.00017225,2]
[367489748,1750821041391,-408.16621113,0.00017225,2]
[367489749,1750821041400,-460.0,0.00017225,2]
[367489750,1750821041410,-460.0,0.00017225,2]
[367489751,1750821041419,-557.60883677,0.00017226,2]
[367489752,1750821041429,-687.31822387,0.00017388,2]
[367489753,1750821041439,-558.77,0.00017493,2]
[367489754,1750821041448,-886.56,0.00017493,2]
[367489755,1750821041457,-749.67,0.00017493,2]
[367489756,1750821041467,-460.0,0.00017493,2]
[367489757,1750821041477,-460.0,0.00017493,2]
[367489758,1750821041486,-430.0,0.00017493,2]
[367489759,1750821041496,-460.0,0.00017493,2]
[367489760,1750821041506,-460.0,0.00017493,2]
[367489761,1750821041516,-460.0,0.00017493,2]
[367489762,1750821041526,-460.0,0.00017493,2]
[367489763,1750821041536,-460.0,0.00017493,2]
[367489764,1750821041545,-460.0,0.00017493,2]
[367489765,1750821041554,-460.0,0.00017493,2]
[367489766,1750821041564,-723.24,0.00017493,2]
[367489767,1750821041573,-460.0,0.00017493,2]
[367489768,1750821041583,-460.0,0.00017493,2]
[367489769,1750821041592,-305.59,0.00017493,2]
[367489770,1750821041601,-438.93705695,0.00017493,2]
[367489771,1750821041611,-460.0,0.00017493,2]
[367489772,1750821041621,-460.0,0.00017494,2]
[367489773,1750821041630,-460.0,0.00017494,2]
[367489774,1750821041640,-460.0,0.00017494,2]
[367489775,1750821041649,-460.0,0.00017494,2]
[367489776,1750821041659,-460.0,0.00017494,2]
[367489777,1750821041669,-460.0,0.00017494,2]
[367489778,1750821041678,-460.0,0.00017494,2]
[367489779,1750821041687,-460.0,0.00017494,2]
[367489780,1750821041698,-460.0,0.00017494,2]
[367489781,1750821041707,-370.74,0.00017494,2]
[367489782,1750821041718,-460.0,0.00017494,2]
[367489783,1750821041727,-460.0,0.00017494,2]
[367489784,1750821041737,-460.0,0.00017494,2]
[367489785,1750821041747,-460.0,0.00017494,2]
[367489786,1750821041756,-460.0,0.00017494,2]
[367489787,1750821041766,-460.0,0.00017494,2]
[367489788,1750821041775,-460.0,0.00017494,2]
[367489789,1750821041784,-460.0,0.00017494,2]
[367489790,1750821041794,-1162.97,0.00017494,2]
[367489791,1750821041803,-460.0,0.00017494,2]
[367489792,1750821041813,-291.92,0.00017495,2]
[367489793,1750821041822,-460.0,0.00017495,2]
[367489794,1750821041832,-460.0,0.00017495,2]
[367489795,1750821041842,-460.0,0.00017495,2]
[367489796,1750821041851,-439.67921954,0.00017495,2]
[367489797,1750821041861,-460.0,0.00017495,2]
[367489798,1750821041871,-460.0,0.00017495,2]
[367489799,1750821041880,-460.0,0.00017495,2]
[367489800,1750821041890,-590.03126918,0.00017495,2]
[367489801,1750821041903,-460.0,0.00017495,2]
[367489802,1750821041914,-460.0,0.00017495,2]
[367489803,1750821041923,-460.0,0.00017495,2]
[367489804,1750821041932,-460.0,0.00017495,2]
[367489805,1750821041942,-370.0,0.00017495,2]
[367489806,1750821041952,-404.87125098,0.00017495,2]
[367489807,1750821041962,-460.0,0.00017495,2]
[367489808,1750821041971,-460.0,0.00017495,2]
[367489809,1750821041982,-460.0,0.00017495,2]
[367489810,1750821041991,-460.0,0.00017495,2]
[367489811,1750821042001,-460.0,0.00017495,2]
[367489812,1750821042010,-460.0,0.00017495,2]
[367489813,1750821042019,-270.66,0.00017495,2]
[367489814,1750821042031,-460.0,0.00017495,2]
[367489815,1750821042040,-460.0,0.00017495,2]
[367489816,1750821042050,-375.63612537,0.00017495,2]
[367489817,1750821042059,-460.0,0.00017495,2]
[367489818,1750821042068,-473.97,0.00017495,2]
[367489819,1750821042078,-460.0,0.00017495,2]
[367489820,1750821042087,-460.0,0.00017495,2]
[367489821,1750821042096,-460.0,0.00017495,2]
[367489822,1750821042106,-506.33,0.00017495,2]
[367489823,1750821042115,-460.0,0.00017495,2]
[367489824,1750821042125,-460.0,0.00017495,2]
[367489825,1750821042134,-460.0,0.00017495,2]
[367489826,1750821042143,-460.0,0.00017495,2]
[367489827,1750821042153,-915.85,0.00017495,2]
[367489828,1750821042162,-571.44,0.00017495,2]
[367489829,1750821042171,-257.12082694,0.00017495,2]
[367489830,1750821042181,-518.25,0.00017495,2]
[367489831,1750821042190,-460.0,0.00017495,2]
[367489832,1750821042199,-463.79,0.00017495,2]
[367489833,1750821042209,-303.50217855,0.00017495,2]
[367489834,1750821042218,-460.0,0.00017495,2]
[367489835,1750821042227,-354.97,0.00017495,2]
[367489836,1750821042236,-151.85384278,0.00017495,2]
[367489837,1750821042246,-460.0,0.00017495,2]
[367489838,1750821042255,-460.0,0.00017495,2]
[367489839,1750821042264,-460.0,0.00017495,2]
[367489840,1750821042273,-460.0,0.00017495,2]
[367489841,1750821042283,-460.0,0.00017495,2]
[367489842,1750821042292,-460.0,0.00017495,2]
[367489843,1750821042302,-728.56,0.00017495,2]
[367489844,1750821042311,-460.0,0.00017495,2]
[367489845,1750821042322,-497.7,0.00017495,2]
[367489846,1750821042331,-460.0,0.00017495,2]
[367489847,1750821042341,-460.0,0.00017495,2]
[367489848,1750821042351,-460.0,0.00017495,2]
[367489849,1750821042361,-430.0,0.00017495,2]
[367489850,1750821042371,-460.0,0.00017495,2]
[367489851,1750821042380,-552.83,0.00017495,2]
[367489852,1750821042390,-342.34460055,0.00017495,2]
[367489853,1750821042400,-463.52741001,0.00017495,2]